[Event "SS Manhem Chess Week 2019 Goteborg Open"]
[Site "Molnlycke kulturhus, Biblioteksgatan 2, Molnlycke, Sweden"]
[Date "2019.08.16"]
[Round "3.4"]
[White "Le, Quang Long"]
[Black "Petersson, Baldur Teodor"]
[Result "1/2-1/2"]
[TimeControl "15 minutes + 5 seconds per move from move one (Round 1 - 4) / 90 minutes + 30 seconds per move from move one (Round 5 - 8)"]
[WhiteTitle "IM"]
[BlackTitle "CM"]
[WhiteFideId "12401749"]
[BlackFideId "2309157"]
[WhiteElo "2411"]
[BlackElo "2255"]

1. Nf3 {[%clk 00:15:06]} {[%emt 00:00:04]} Nf6 {[%clk 00:14:50]} {[%emt
00:00:21]} 2. c4 {[%clk 00:15:07]} {[%emt 00:00:04]} g6 {[%clk 00:14:53]}
{[%emt 00:00:02]} 3. g3 {[%clk 00:15:10]} {[%emt 00:00:02]} Bg7 {[%clk
00:14:56]} {[%emt 00:00:01]} 4. Bg2 {[%clk 00:15:14]} {[%emt 00:00:01]} O-O
{[%clk 00:14:58]} {[%emt 00:00:03]} 5. O-O {[%clk 00:15:16]} {[%emt 00:00:03]}
c5 {[%clk 00:15:01]} {[%emt 00:00:02]} 6. d4 {[%clk 00:15:20]} {[%emt
00:00:01]} d6 {[%clk 00:15:05]} {[%emt 00:00:01]} 7. Nc3 {[%clk 00:15:14]}
{[%emt 00:00:11]} Nc6 {[%clk 00:15:08]} {[%emt 00:00:02]} 8. d5 {[%clk
00:14:21]} {[%emt 00:00:58]} Na5 {[%clk 00:15:11]} {[%emt 00:00:02]} 9. Nd2
{[%clk 00:14:25]} {[%emt 00:00:01]} a6 {[%clk 00:15:14]} {[%emt 00:00:02]} 10.
Qc2 {[%clk 00:14:21]} {[%emt 00:00:09]} Rb8 {[%clk 00:15:12]} {[%emt 00:00:07]}
11. Rb1 {[%clk 00:13:44]} {[%emt 00:00:42]} b5 {[%clk 00:12:58]} {[%emt
00:02:19]} 12. b3 {[%clk 00:13:43]} {[%emt 00:00:06]} Bd7 {[%clk 00:05:53]}
{[%emt 00:07:10]} 13. h3 {[%clk 00:13:10]} {[%emt 00:00:38]} bxc4 {[%clk
00:05:10]} {[%emt 00:00:49]} 14. bxc4 {[%clk 00:13:10]} {[%emt 00:00:05]} Rxb1
{[%clk 00:05:12]} {[%emt 00:00:02]} 15. Qxb1 {[%clk 00:13:06]} {[%emt
00:00:08]} Qc7 {[%clk 00:04:51]} {[%emt 00:00:26]} 16. e4 {[%clk 00:12:20]}
{[%emt 00:00:52]} e5 {[%clk 00:04:19]} {[%emt 00:00:36]} 17. Qc2 {[%clk
00:09:02]} {[%emt 00:03:22]} Bh6 {[%clk 00:03:06]} {[%emt 00:01:19]} 18. Qd3
{[%clk 00:08:34]} {[%emt 00:00:33]} Nh5 {[%clk 00:02:40]} {[%emt 00:00:31]} 19.
Kh2 {[%clk 00:08:02]} {[%emt 00:00:38]} f5 {[%clk 00:02:28]} {[%emt 00:00:17]}
20. exf5 {[%clk 00:06:45]} {[%emt 00:01:22]} gxf5 {[%clk 00:02:31]} {[%emt
00:00:02]} 21. Qe2 {[%clk 00:06:49]} {[%emt 00:00:02]} Be8 {[%clk 00:01:33]}
{[%emt 00:01:03]} 22. Nf3 {[%clk 00:06:39]} {[%emt 00:00:15]} Bxc1 {[%clk
00:01:34]} {[%emt 00:00:04]} 23. Rxc1 {[%clk 00:06:42]} {[%emt 00:00:02]} Qg7
{[%clk 00:00:52]} {[%emt 00:00:46]} 24. Nd2 {[%clk 00:04:40]} {[%emt 00:02:07]}
Nf6 {[%clk 00:00:32]} {[%emt 00:00:26]} 25. Rb1 {[%clk 00:04:31]} {[%emt
00:00:15]} Bh5 {[%clk 00:00:32]} {[%emt 00:00:05]} 26. Bf3 {[%clk 00:04:14]}
{[%emt 00:00:21]} Bxf3 {[%clk 00:00:33]} {[%emt 00:00:03]} 27. Qxf3 {[%clk
00:04:09]} {[%emt 00:00:10]} e4 {[%clk 00:00:13]} {[%emt 00:00:26]} 28. Qxf5
{[%clk 00:03:47]} {[%emt 00:00:26]} Ng4+ {[%clk 00:00:17]} 29. Qxg4 {[%clk
00:03:42]} {[%emt 00:00:10]} Rxf2+ {[%clk 00:00:19]} {[%emt 00:00:03]} 30. Kg1
{[%clk 00:03:37]} {[%emt 00:00:09]} Qxg4 {[%clk 00:00:15]} {[%emt 00:00:10]} 31.
hxg4 {[%clk 00:03:19]} {[%emt 00:00:23]} Rxd2 {[%clk 00:00:19]} {[%emt
00:00:02]} 32. Nxe4 {[%clk 00:03:18]} {[%emt 00:00:06]} Rd4 {[%clk 00:00:17]}
{[%emt 00:00:06]} 33. Rb8+ {[%clk 00:03:15]} {[%emt 00:00:08]} Kg7 {[%clk
00:00:18]} {[%emt 00:00:04]} 34. Nxd6 {[%clk 00:03:18]} {[%emt 00:00:03]} Rxg4
{[%clk 00:00:14]} {[%emt 00:00:09]} 35. Nf5+ {[%clk 00:01:53]} {[%emt
00:01:30]} Kf6 {[%clk 00:00:09]} {[%emt 00:00:10]} 36. Ne3 {[%clk 00:01:19]}
{[%emt 00:00:38]} Rxg3+ {[%clk 00:00:13]} {[%emt 00:00:02]} 37. Kf2 {[%clk
00:01:23]} Rg6 {[%clk 00:00:12]} {[%emt 00:00:06]} 38. Rc8 {[%clk 00:01:06]}
{[%emt 00:00:23]} Ke5 {[%clk 00:00:09]} {[%emt 00:00:09]} 39. Rxc5 {[%clk
00:00:58]} {[%emt 00:00:12]} Nb7 {[%clk 00:00:11]} {[%emt 00:00:03]} 40. Rc7
{[%clk 00:00:50]} {[%emt 00:00:13]} Nd6 {[%clk 00:00:12]} {[%emt 00:00:04]} 41.
Rxh7 {[%clk 00:00:38]} {[%emt 00:00:18]} Kd4 {[%clk 00:00:12]} {[%emt
00:00:05]} 42. Rh4+ {[%clk 00:00:15]} {[%emt 00:00:27]} Kc5 {[%clk 00:00:16]}
{[%emt 00:00:01]} 43. Rf4 {[%clk 00:00:16]} {[%emt 00:00:02]} Rh6 {[%clk
00:00:17]} {[%emt 00:00:07]} 44. Ke2 {[%clk 00:00:10]} {[%emt 00:00:11]} Rh2+
{[%clk 00:00:15]} {[%emt 00:00:08]} 45. Rf2 {[%clk 00:00:10]} {[%emt 00:00:04]}
Rh4 {[%clk 00:00:19]} {[%emt 00:00:02]} 46. Kd3 {[%clk 00:00:10]} {[%emt
00:00:06]} Rd4+ {[%clk 00:00:17]} {[%emt 00:00:06]} 47. Ke2 {[%clk 00:00:07]}
{[%emt 00:00:08]} Nxc4 {[%clk 00:00:20]} {[%emt 00:00:03]} 48. Nxc4 {[%clk
00:00:07]} {[%emt 00:00:04]} Kxc4 {[%clk 00:00:21]} {[%emt 00:00:04]} 49. Rf6
{[%clk 00:00:08]} {[%emt 00:00:04]} a5 {[%clk 00:00:16]} {[%emt 00:00:10]} 50.
d6 {[%clk 00:00:08]} {[%emt 00:00:05]} Kc5 {[%clk 00:00:20]} {[%emt 00:00:01]}
51. Rf5+ {[%clk 00:00:12]} Kxd6 {[%clk 00:00:23]} {[%emt 00:00:02]} 52. Rxa5
{[%clk 00:00:16]} Kc6 {[%clk 00:00:27]} 53. Ke3 {[%clk 00:00:19]} {[%emt
00:00:02]} Rh4 {[%clk 00:00:31]} {[%emt 00:00:01]} 54. Kd3 {[%clk 00:00:21]}
{[%emt 00:00:05]} Kb6 {[%clk 00:00:35]} 55. Ra8 {[%clk 00:00:25]} Kb5 {[%clk
00:00:39]} {[%emt 00:00:01]} 56. Kc3 {[%clk 00:00:27]} {[%emt 00:00:02]} Rh3+
{[%clk 00:00:42]} {[%emt 00:00:03]} 57. Kb2 {[%clk 00:00:22]} {[%emt 00:00:10]}
Rh2+ {[%clk 00:00:45]} {[%emt 00:00:02]} 58. Kb3 {[%clk 00:00:25]} {[%emt
00:00:02]} Rh3+ {[%clk 00:00:49]} {[%emt 00:00:01]} 1/2-1/2

[Event "SS Manhem Chess Week 2019 Goteborg Open"]
[Site "Molnlycke kulturhus, Biblioteksgatan 2, Molnlycke, Sweden"]
[Date "2019.08.16"]
[Round "3.5"]
[White "Castrillon Gomez, Melissa"]
[Black "Seo, Jung Min"]
[Result "0-1"]
[TimeControl "15 minutes + 5 seconds per move from move one (Round 1 - 4) / 90 minutes + 30 seconds per move from move one (Round 5 - 8)"]
[WhiteTitle "WIM"]
[BlackTitle "FM"]
[WhiteFideId "4402413"]
[BlackFideId "1734687"]
[WhiteElo "2227"]
[BlackElo "2409"]

1. d4 {[%clk 00:15:05]} {[%emt 00:00:01]} Nf6 {[%clk 00:15:05]} {[%emt
00:00:02]} 2. c4 {[%clk 00:15:05]} {[%emt 00:00:03]} e6 {[%clk 00:15:05]} 3.
Nf3 {[%clk 00:15:05]} b6 {[%clk 00:15:05]} {[%emt 00:00:01]} 4. a3 {[%clk
00:15:05]} {[%emt 00:00:02]} Bb7 {[%clk 00:15:05]} {[%emt 00:00:03]} 5. Nc3
{[%clk 00:15:05]} {[%emt 00:00:02]} Ne4 {[%clk 00:15:05]} {[%emt 00:00:02]} 6.
d5 {[%clk 00:12:22]} {[%emt 00:02:49]} Nxc3 {[%clk 00:14:57]} {[%emt 00:00:13]}
7. bxc3 {[%clk 00:12:22]} {[%emt 00:00:01]} d6 {[%clk 00:14:39]} {[%emt
00:00:23]} 8. e4 {[%clk 00:11:37]} {[%emt 00:00:50]} e5 {[%clk 00:14:27]}
{[%emt 00:00:17]} 9. Be3 {[%clk 00:11:37]} {[%emt 00:00:05]} Nd7 {[%clk
00:14:27]} {[%emt 00:00:03]} 10. Rb1 {[%clk 00:11:33]} {[%emt 00:00:10]} Be7
{[%clk 00:13:55]} {[%emt 00:00:36]} 11. Bd3 {[%clk 00:11:33]} {[%emt 00:00:02]}
O-O {[%clk 00:13:53]} {[%emt 00:00:06]} 12. O-O {[%clk 00:11:25]} {[%emt
00:00:13]} a5 {[%clk 00:13:24]} {[%emt 00:00:34]} 13. Bc2 {[%clk 00:10:48]}
{[%emt 00:00:43]} Ba6 {[%clk 00:13:24]} {[%emt 00:00:02]} 14. Nd2 {[%clk
00:10:48]} {[%emt 00:00:02]} Bg5 {[%clk 00:13:22]} {[%emt 00:00:07]} 15. Qe2
{[%clk 00:09:35]} {[%emt 00:01:19]} Bxe3 {[%clk 00:12:52]} {[%emt 00:00:35]} 16.
Qxe3 {[%clk 00:09:35]} {[%emt 00:00:01]} Nc5 {[%clk 00:12:50]} {[%emt
00:00:06]} 17. f4 {[%clk 00:09:04]} {[%emt 00:00:36]} exf4 {[%clk 00:12:50]}
{[%emt 00:00:06]} 18. Rxf4 {[%clk 00:09:04]} {[%emt 00:00:02]} Nd7 {[%clk
00:12:37]} {[%emt 00:00:18]} 19. Ba4 {[%clk 00:08:16]} {[%emt 00:00:53]} Ne5
{[%clk 00:12:37]} {[%emt 00:00:02]} 20. Bb5 {[%clk 00:08:16]} {[%emt 00:00:02]}
Qe7 {[%clk 00:12:01]} {[%emt 00:00:40]} 21. Nf3 {[%clk 00:07:08]} {[%emt
00:01:13]} Nxc4 {[%clk 00:11:18]} {[%emt 00:00:47]} 22. Bxc4 {[%clk 00:07:08]}
{[%emt 00:00:01]} Bxc4 {[%clk 00:11:18]} 23. Rg4 {[%clk 00:06:32]} {[%emt
00:00:40]} g6 {[%clk 00:10:02]} {[%emt 00:01:22]} 24. Qh6 {[%clk 00:04:58]}
{[%emt 00:01:39]} Be2 {[%clk 00:07:55]} {[%emt 00:02:12]} 25. Rh4 {[%clk
00:04:28]} {[%emt 00:00:35]} f6 {[%clk 00:07:46]} {[%emt 00:00:13]} 26. Nd4
{[%clk 00:04:24]} {[%emt 00:00:09]} Ba6 {[%clk 00:07:24]} {[%emt 00:00:28]} 27.
Ne6 {[%clk 00:03:57]} {[%emt 00:00:32]} Rf7 {[%clk 00:07:11]} {[%emt 00:00:18]}
28. Re1 {[%clk 00:02:56]} {[%emt 00:01:06]} Bc8 {[%clk 00:07:11]} {[%emt
00:00:05]} 29. Nd4 {[%clk 00:02:44]} {[%emt 00:00:17]} Bd7 {[%clk 00:07:02]}
{[%emt 00:00:14]} 30. Rf4 {[%clk 00:02:34]} {[%emt 00:00:15]} Qf8 {[%clk
00:06:47]} {[%emt 00:00:20]} 31. Qh4 {[%clk 00:02:14]} {[%emt 00:00:24]} Re8
{[%clk 00:06:38]} {[%emt 00:00:14]} 32. Rf3 {[%clk 00:01:05]} {[%emt 00:01:15]}
Qg7 {[%clk 00:06:26]} {[%emt 00:00:17]} 33. Qf2 {[%clk 00:00:59]} {[%emt
00:00:11]} Re5 {[%clk 00:05:39]} {[%emt 00:00:52]} 34. Nf5 {[%clk 00:00:34]}
{[%emt 00:00:29]} Bxf5 {[%clk 00:05:26]} {[%emt 00:00:18]} 35. exf5 {[%clk
00:00:34]} Rxe1+ {[%clk 00:05:15]} {[%emt 00:00:17]} 36. Qxe1 {[%clk 00:00:34]}
{[%emt 00:00:01]} Re7 {[%clk 00:05:15]} {[%emt 00:00:04]} 37. Qf1 {[%clk
00:00:32]} {[%emt 00:00:08]} Kf7 {[%clk 00:05:06]} {[%emt 00:00:13]} 38. fxg6+
{[%clk 00:00:31]} {[%emt 00:00:06]} hxg6 {[%clk 00:05:06]} {[%emt 00:00:01]} 39.
Rf2 {[%clk 00:00:22]} {[%emt 00:00:14]} f5 {[%clk 00:05:01]} {[%emt 00:00:10]}
40. Re2 {[%clk 00:00:17]} {[%emt 00:00:10]} Qxc3 {[%clk 00:04:43]} {[%emt
00:00:22]} 41. Rxe7+ {[%clk 00:00:17]} {[%emt 00:00:05]} Kxe7 {[%clk 00:04:43]}
42. Qe2+ {[%clk 00:00:17]} {[%emt 00:00:05]} Qe5 {[%clk 00:04:43]} {[%emt
00:00:01]} 43. Qd2 {[%clk 00:00:17]} Kf7 {[%clk 00:04:30]} {[%emt 00:00:18]} 44.
h3 {[%clk 00:00:17]} Qa1+ {[%clk 00:04:30]} {[%emt 00:00:04]} 45. Kh2 {[%clk
00:00:17]} {[%emt 00:00:02]} Qe5+ {[%clk 00:04:14]} {[%emt 00:00:21]} 46. Kh1
{[%clk 00:00:17]} {[%emt 00:00:02]} Kf6 {[%clk 00:04:04]} {[%emt 00:00:15]} 47.
Qd3 {[%clk 00:00:14]} {[%emt 00:00:08]} g5 {[%clk 00:03:45]} {[%emt 00:00:23]}
48. Qc4 {[%clk 00:00:14]} {[%emt 00:00:04]} Qe7 {[%clk 00:03:38]} {[%emt
00:00:11]} 49. Qc3+ {[%clk 00:00:14]} {[%emt 00:00:02]} Kg6 {[%clk 00:03:38]}
{[%emt 00:00:01]} 50. Qc2 {[%clk 00:00:10]} {[%emt 00:00:09]} Qf7 {[%clk
00:03:38]} {[%emt 00:00:05]} 51. Qc6 {[%clk 00:00:10]} {[%emt 00:00:03]} f4
{[%clk 00:03:29]} {[%emt 00:00:14]} 52. Qc2+ {[%clk 00:00:10]} {[%emt
00:00:02]} Kh6 {[%clk 00:03:27]} {[%emt 00:00:07]} 53. Qe4 {[%clk 00:00:10]}
{[%emt 00:00:03]} Qf6 {[%clk 00:03:27]} {[%emt 00:00:01]} 54. Qe8 {[%clk
00:00:10]} {[%emt 00:00:06]} Qa1+ {[%clk 00:03:24]} {[%emt 00:00:07]} 55. Kh2
{[%clk 00:00:10]} Qe5 {[%clk 00:03:16]} {[%emt 00:00:13]} 56. Qf8+ {[%clk
00:00:10]} {[%emt 00:00:01]} Kg6 {[%clk 00:03:16]} {[%emt 00:00:02]} 57. Qg8+
{[%clk 00:00:10]} Kf5 {[%clk 00:03:12]} {[%emt 00:00:09]} 58. Qf7+ {[%clk
00:00:10]} {[%emt 00:00:01]} Ke4 {[%clk 00:03:12]} {[%emt 00:00:01]} 59. Qh7+
{[%clk 00:00:08]} {[%emt 00:00:06]} Kxd5 {[%clk 00:03:06]} {[%emt 00:00:11]} 60.
Qxc7 {[%clk 00:00:08]} {[%emt 00:00:01]} f3+ {[%clk 00:03:06]} {[%emt
00:00:02]} 61. Kg1 {[%clk 00:00:08]} {[%emt 00:00:04]} Qe1+ {[%emt 00:00:46]}
62. Kh2 f2 {[%clk 00:02:25]} {[%emt 00:00:06]} 63. Qf7+ {[%clk 00:00:08]} Kd4
{[%clk 00:02:25]} {[%emt 00:00:02]} 64. Qf6+ {[%clk 00:00:08]} {[%emt
00:00:02]} Qe5+ {[%clk 00:02:25]} {[%emt 00:00:03]} 0-1

[Event "SS Manhem Chess Week 2019 Goteborg Open"]
[Site "Molnlycke kulturhus, Biblioteksgatan 2, Molnlycke, Sweden"]
[Date "2019.08.16"]
[Round "3.6"]
[White "Vypkhaniuk, Ihor"]
[Black "Carlsson, Ludvig"]
[Result "1/2-1/2"]
[TimeControl "15 minutes + 5 seconds per move from move one (Round 1 - 4) / 90 minutes + 30 seconds per move from move one (Round 5 - 8)"]
[WhiteTitle "FM"]
[BlackTitle "CM"]
[WhiteFideId "14112256"]
[BlackFideId "1727010"]
[WhiteElo "2405"]
[BlackElo "2234"]

1. Nf3 {[%clk 00:15:08]} {[%emt 00:00:02]} g6 {[%clk 00:15:01]} {[%emt
00:00:08]} 2. g3 {[%clk 00:15:03]} {[%emt 00:00:11]} Bg7 {[%clk 00:15:04]}
{[%emt 00:00:02]} 3. Bg2 {[%clk 00:15:07]} {[%emt 00:00:01]} e5 {[%clk
00:15:01]} {[%emt 00:00:08]} 4. d3 {[%clk 00:15:08]} {[%emt 00:00:04]} d5
{[%clk 00:15:02]} {[%emt 00:00:04]} 5. O-O {[%clk 00:15:00]} {[%emt 00:00:13]}
Ne7 {[%clk 00:15:05]} {[%emt 00:00:02]} 6. Nbd2 {[%clk 00:14:43]} {[%emt
00:00:22]} O-O {[%clk 00:14:57]} {[%emt 00:00:12]} 7. c4 {[%clk 00:14:46]}
{[%emt 00:00:02]} Nbc6 {[%clk 00:14:47]} {[%emt 00:00:15]} 8. Rb1 {[%clk
00:14:47]} {[%emt 00:00:04]} a5 {[%clk 00:14:42]} {[%emt 00:00:10]} 9. b3
{[%clk 00:14:49]} {[%emt 00:00:03]} h6 {[%clk 00:12:45]} {[%emt 00:02:01]} 10.
cxd5 {[%clk 00:14:51]} {[%emt 00:00:03]} Nxd5 {[%clk 00:12:44]} {[%emt
00:00:06]} 11. Bb2 {[%clk 00:14:55]} Re8 {[%clk 00:12:17]} {[%emt 00:00:32]} 12.
a3 {[%clk 00:14:58]} {[%emt 00:00:02]} b6 {[%clk 00:11:56]} {[%emt 00:00:26]}
13. Nc4 {[%clk 00:14:29]} {[%emt 00:00:34]} Bb7 {[%clk 00:11:56]} {[%emt
00:00:05]} 14. e4 {[%clk 00:14:16]} {[%emt 00:00:18]} Nf6 {[%clk 00:11:55]}
{[%emt 00:00:06]} 15. Ncxe5 {[%clk 00:13:55]} {[%emt 00:00:26]} Nxe5 {[%clk
00:11:02]} {[%emt 00:00:58]} 16. Bxe5 {[%clk 00:13:59]} {[%emt 00:00:01]} Ba6
{[%clk 00:10:54]} {[%emt 00:00:14]} 17. Rc1 {[%clk 00:09:24]} {[%emt 00:04:40]}
c5 {[%clk 00:08:10]} {[%emt 00:02:49]} 18. Rc3 {[%clk 00:09:28]} {[%emt
00:00:02]} Rxe5 {[%clk 00:08:12]} {[%emt 00:00:02]} 19. Nxe5 {[%clk 00:09:30]}
{[%emt 00:00:03]} Qd4 {[%clk 00:08:16]} {[%emt 00:00:02]} 20. Nc4 {[%clk
00:05:44]} {[%emt 00:03:51]} Qxc3 {[%clk 00:08:09]} {[%emt 00:00:11]} 21. e5
{[%clk 00:05:47]} {[%emt 00:00:02]} Rd8 {[%clk 00:08:03]} {[%emt 00:00:10]} 22.
exf6 {[%clk 00:05:50]} {[%emt 00:00:03]} Bxf6 {[%clk 00:08:02]} {[%emt
00:00:06]} 23. Nxb6 {[%clk 00:05:31]} {[%emt 00:00:25]} Qxd3 {[%clk 00:05:31]}
{[%emt 00:02:35]} 24. Nd5 {[%clk 00:03:22]} {[%emt 00:02:15]} Qxd1 {[%clk
00:03:29]} {[%emt 00:02:07]} 25. Rxd1 {[%clk 00:03:25]} Bd4 {[%clk 00:03:33]}
{[%emt 00:00:01]} 26. b4 {[%clk 00:02:57]} {[%emt 00:00:34]} axb4 {[%clk
00:03:35]} {[%emt 00:00:02]} 27. axb4 {[%clk 00:03:00]} {[%emt 00:00:02]} Kg7
{[%clk 00:03:39]} {[%emt 00:00:01]} 28. bxc5 {[%clk 00:02:55]} {[%emt
00:00:10]} Bxc5 {[%clk 00:03:39]} {[%emt 00:00:04]} 29. Ne3 {[%clk 00:02:34]}
{[%emt 00:00:26]} Re8 {[%clk 00:03:18]} {[%emt 00:00:26]} 30. Ra1 {[%clk
00:01:53]} {[%emt 00:00:46]} Bd3 {[%clk 00:02:39]} {[%emt 00:00:44]} 31. Rd1
{[%clk 00:01:30]} {[%emt 00:00:29]} Be4 {[%clk 00:01:57]} {[%emt 00:00:47]} 32.
Bxe4 {[%clk 00:01:31]} {[%emt 00:00:04]} Rxe4 {[%clk 00:02:00]} {[%emt
00:00:02]} 33. Rd3 {[%clk 00:01:17]} {[%emt 00:00:19]} Bxe3 {[%clk 00:01:57]}
{[%emt 00:00:08]} 34. fxe3 {[%clk 00:01:21]} {[%emt 00:00:01]} h5 {[%clk
00:01:59]} {[%emt 00:00:03]} 1/2-1/2

[Event "SS Manhem Chess Week 2019 Goteborg Open"]
[Site "Molnlycke kulturhus, Biblioteksgatan 2, Molnlycke, Sweden"]
[Date "2019.08.16"]
[Round "3.7"]
[White "Arnelind, Mikael"]
[Black "Ahlander, Bjorn"]
[Result "0-1"]
[TimeControl "15 minutes + 5 seconds per move from move one (Round 1 - 4) / 90 minutes + 30 seconds per move from move one (Round 5 - 8)"]
[BlackTitle "IM"]
[WhiteFideId "1704290"]
[BlackFideId "1700251"]
[WhiteElo "2187"]
[BlackElo "2390"]

1. d4 {[%clk 00:15:06]} {[%emt 00:00:04]} Nf6 {[%clk 00:15:09]} 2. c4 {[%clk
00:15:09]} {[%emt 00:00:03]} e6 {[%clk 00:15:12]} {[%emt 00:00:03]} 3. Nc3
{[%clk 00:15:09]} {[%emt 00:00:02]} Bb4 {[%clk 00:15:15]} {[%emt 00:00:02]} 4.
e3 {[%clk 00:15:12]} {[%emt 00:00:03]} O-O {[%clk 00:15:17]} {[%emt 00:00:03]}
5. Bd3 {[%clk 00:15:13]} {[%emt 00:00:04]} d5 {[%clk 00:15:13]} {[%emt
00:00:09]} 6. Nf3 {[%clk 00:15:12]} {[%emt 00:00:06]} c5 {[%clk 00:15:16]}
{[%emt 00:00:03]} 7. O-O {[%clk 00:14:57]} {[%emt 00:00:19]} Nc6 {[%clk
00:15:18]} {[%emt 00:00:04]} 8. a3 {[%clk 00:14:54]} {[%emt 00:00:07]} Bxc3
{[%clk 00:15:21]} {[%emt 00:00:02]} 9. bxc3 {[%clk 00:14:58]} {[%emt 00:00:02]}
dxc4 {[%clk 00:15:25]} {[%emt 00:00:02]} 10. Bxc4 {[%clk 00:15:01]} {[%emt
00:00:02]} Qc7 {[%clk 00:15:28]} {[%emt 00:00:02]} 11. Qc2 {[%clk 00:14:04]}
{[%emt 00:01:02]} e5 {[%clk 00:15:14]} {[%emt 00:00:19]} 12. Bd3 {[%clk
00:13:39]} {[%emt 00:00:31]} Re8 {[%clk 00:14:49]} {[%emt 00:00:30]} 13. dxe5
{[%clk 00:13:38]} {[%emt 00:00:06]} Nxe5 {[%clk 00:14:51]} {[%emt 00:00:02]} 14.
Nxe5 {[%clk 00:13:38]} {[%emt 00:00:05]} Qxe5 {[%clk 00:14:54]} {[%emt
00:00:02]} 15. f3 {[%clk 00:13:34]} {[%emt 00:00:09]} Be6 {[%clk 00:13:23]}
{[%emt 00:01:36]} 16. e4 {[%clk 00:12:54]} {[%emt 00:00:45]} c4 {[%clk
00:12:06]} {[%emt 00:01:22]} 17. Be2 {[%clk 00:12:57]} {[%emt 00:00:01]} Qc5+
{[%clk 00:12:10]} {[%emt 00:00:02]} 18. Kh1 {[%clk 00:12:54]} {[%emt 00:00:08]}
Nd7 {[%clk 00:12:12]} {[%emt 00:00:03]} 19. a4 {[%clk 00:12:18]} {[%emt
00:00:41]} Ne5 {[%clk 00:12:01]} {[%emt 00:00:16]} 20. Ba3 {[%clk 00:11:41]}
{[%emt 00:00:41]} Qc6 {[%clk 00:12:04]} {[%emt 00:00:02]} 21. Rfd1 {[%clk
00:10:38]} {[%emt 00:01:08]} Rad8 {[%clk 00:10:46]} {[%emt 00:01:22]} 22. Rd4
{[%clk 00:10:13]} {[%emt 00:00:30]} Qc8 {[%clk 00:10:13]} {[%emt 00:00:38]} 23.
f4 {[%clk 00:07:22]} {[%emt 00:02:57]} Nc6 {[%clk 00:10:16]} {[%emt 00:00:02]}
24. f5 {[%clk 00:05:45]} {[%emt 00:01:41]} Nxd4 {[%clk 00:10:01]} {[%emt
00:00:20]} 25. cxd4 {[%clk 00:05:49]} {[%emt 00:00:01]} Bd7 {[%clk 00:10:05]}
{[%emt 00:00:02]} 26. Bxc4 {[%clk 00:05:51]} {[%emt 00:00:04]} b5 {[%clk
00:08:04]} {[%emt 00:02:05]} 27. Bd3 {[%clk 00:04:33]} {[%emt 00:01:23]} Qxc2
{[%clk 00:07:53]} {[%emt 00:00:16]} 28. Bxc2 {[%clk 00:04:36]} {[%emt
00:00:01]} Rc8 {[%clk 00:07:48]} {[%emt 00:00:10]} 29. Bc5 {[%clk 00:04:38]}
{[%emt 00:00:04]} bxa4 {[%clk 00:06:58]} {[%emt 00:00:55]} 30. e5 {[%clk
00:04:40]} {[%emt 00:00:02]} Rb8 {[%clk 00:05:21]} {[%emt 00:01:42]} 31. h3
{[%clk 00:04:20]} {[%emt 00:00:25]} Rec8 {[%clk 00:03:43]} {[%emt 00:01:43]} 32.
Bxa4 {[%clk 00:02:47]} {[%emt 00:01:38]} Bxf5 {[%clk 00:03:42]} {[%emt
00:00:06]} 33. Ra2 {[%clk 00:01:47]} {[%emt 00:01:05]} Be6 {[%clk 00:03:28]}
{[%emt 00:00:19]} 34. Rd2 {[%clk 00:01:50]} {[%emt 00:00:02]} Bd5 {[%clk
00:03:31]} {[%emt 00:00:02]} 35. Kh2 {[%clk 00:01:41]} {[%emt 00:00:14]} Rb7
{[%clk 00:03:23]} {[%emt 00:00:13]} 36. Bd1 {[%clk 00:01:32]} {[%emt 00:00:13]}
Rcb8 {[%clk 00:03:23]} {[%emt 00:00:05]} 37. Bd6 {[%clk 00:01:32]} {[%emt
00:00:06]} Rb2 {[%clk 00:03:17]} {[%emt 00:00:10]} 38. Bc2 {[%clk 00:01:12]}
{[%emt 00:00:25]} R8b7 {[%clk 00:02:54]} {[%emt 00:00:28]} 39. e6 {[%clk
00:00:27]} {[%emt 00:00:51]} Bxe6 {[%clk 00:01:55]} {[%emt 00:01:04]} 40. Ba3
{[%clk 00:00:18]} {[%emt 00:00:14]} Ra2 {[%clk 00:01:26]} {[%emt 00:00:34]} 41.
d5 {[%clk 00:00:22]} Rxa3 {[%clk 00:01:06]} {[%emt 00:00:27]} 42. dxe6 {[%clk
00:00:25]} {[%emt 00:00:01]} fxe6 {[%clk 00:01:09]} {[%emt 00:00:02]} 43. Rd8+
{[%clk 00:00:29]} Kf7 {[%clk 00:01:12]} {[%emt 00:00:01]} 44. Bxh7 {[%clk
00:00:33]} {[%emt 00:00:02]} g6 {[%clk 00:00:46]} {[%emt 00:00:31]} 45. Bg8+
{[%clk 00:00:35]} {[%emt 00:00:03]} Ke7 {[%clk 00:00:50]} {[%emt 00:00:01]} 46.
Rc8 {[%clk 00:00:39]} Kf6 {[%clk 00:00:43]} {[%emt 00:00:12]} 47. Rf8+ {[%clk
00:00:39]} {[%emt 00:00:05]} Kg7 {[%clk 00:00:45]} {[%emt 00:00:03]} 48. Re8
{[%clk 00:00:43]} {[%emt 00:00:01]} Re3 {[%clk 00:00:42]} {[%emt 00:00:07]} 49.
Kg1 {[%clk 00:00:26]} {[%emt 00:00:22]} a5 {[%clk 00:00:43]} {[%emt 00:00:04]}
50. Kf2 {[%clk 00:00:29]} {[%emt 00:00:01]} Re5 {[%clk 00:00:46]} {[%emt
00:00:03]} 51. Bxe6 {[%clk 00:00:18]} {[%emt 00:00:16]} Kf6 {[%clk 00:00:32]}
{[%emt 00:00:19]} 0-1